fUST/lending_fUST_20240722
["ID","MTS","AMOUNT","RATE_DAILY","PERIOD"]
[332881136,1721621445308,-1107.79559828,0.00015,2]
[332881137,1721621445318,-1309.41156393,0.00015,2]
[332881138,1721621445327,-951.10916369,0.00015,2]
[332881139,1721621445336,-500.0,0.00015068,2]
[332881140,1721621445345,-500.0,0.00015068,2]
[332881141,1721621445354,-1523.47,0.00015068,2]
[332881142,1721621445363,-500.0,0.00015068,2]
[332881143,1721621445373,-500.0,0.00015068,2]
[332881144,1721621445383,-541.28,0.00015068,2]
[332881145,1721621445392,-500.0,0.00015068,2]
[332881146,1721621445401,-500.0,0.00015068,2]
[332881147,1721621445411,-500.0,0.00015068,2]
[332881148,1721621445421,-500.0,0.00015068,2]
[332881149,1721621445430,-915.74,0.00015068,2]
[332881150,1721621445439,-393.1146956,0.00015068,2]
[332881151,1721621445448,-500.0,0.00015068,2]
[332881152,1721621445458,-500.0,0.00015068,2]
[332881153,1721621445467,-500.0,0.00015068,2]
[332881154,1721621445477,-500.0,0.00015068,2]
[332881155,1721621445487,-325.0620593,0.00015068,2]
[332881156,1721621445496,-500.0,0.00015068,2]
[332881157,1721621445505,-1169.38,0.00015068,2]
[332881158,1721621445514,-500.0,0.00015068,2]
[332881159,1721621445523,-500.0,0.00015068,2]
[332881160,1721621445532,-500.0,0.00015068,2]
[332881161,1721621445541,-500.0,0.00015068,2]
[332881162,1721621445551,-500.0,0.00015068,2]
[332881163,1721621445560,-500.0,0.00015068,2]
[332881164,1721621445569,-500.0,0.00015068,2]
[332881165,1721621445579,-500.0,0.00015068,2]
[332881166,1721621445588,-465.08526089,0.00015068,2]
[332881167,1721621445598,-500.0,0.00015068,2]
[332881168,1721621445608,-500.0,0.00015068,2]
[332881169,1721621445618,-500.0,0.00015068,2]
[332881170,1721621445628,-500.0,0.00015068,2]
[332881171,1721621445640,-290.3705009,0.00015068,2]
[332881172,1721621445649,-500.0,0.00015068,2]
[332881173,1721621445661,-500.0,0.00015068,2]
[332881174,1721621445672,-590.23,0.00015068,2]
[332881175,1721621445682,-153.9468442,0.00015069,2]
[332881176,1721621445691,-153.0,0.00015205,2]
[332881177,1721621445701,-371.71316994,0.00015342,2]
[332881178,1721621445710,-1523.47,0.00015342,2]
[332881179,1721621445719,-549.82758754,0.00015342,2]
[332881180,1721621445732,-500.0,0.00015342,2]
[332881181,1721621445742,-285.24884328,0.00015342,2]
[332881182,1721621445752,-507.14398914,0.00015342,2]
[332881183,1721621445763,-915.74,0.00015342,2]
[332881184,1721621445773,-500.0,0.00015342,2]
[332881185,1721621445784,-500.0,0.00015342,2]
[332881186,1721621445793,-585.93209491,0.00015342,2]
[332881187,1721621445802,-500.0,0.00015342,2]
[332881188,1721621445812,-492.041417,0.00015342,2]
[332881189,1721621445821,-1169.38,0.00015342,2]
[332881190,1721621445830,-514.52401745,0.00015342,2]
[332881191,1721621445843,-500.0,0.00015342,2]
[332881192,1721621445853,-500.0,0.00015342,2]
[332881193,1721621445869,-500.0,0.00015342,2]
[332881194,1721621445879,-500.0,0.00015342,2]
[332881195,1721621445889,-500.0,0.00015342,2]
[332881196,1721621445898,-539.71910444,0.00015342,2]
[332881198,1721621445909,-349.30165848,0.00015342,2]
[332881199,1721621445918,-500.0,0.00015342,2]
[332881200,1721621445928,-578.87907718,0.00015342,2]
[332881201,1721621445938,-500.0,0.00015342,2]
[332881202,1721621445948,-500.0,0.00015342,2]
[332881203,1721621445960,-500.0,0.00015342,2]
[332881204,1721621445970,-500.0,0.00015342,2]
[332881205,1721621445980,-590.23,0.00015342,2]
[332881206,1721621445989,-153.0,0.00015342,2]
[332881207,1721621445998,-601.91999634,0.00015517,2]
[332881208,1721621446008,-1523.47,0.00015616,2]
[332881209,1721621446018,-915.74,0.00015616,2]
[332881210,1721621446027,-344.6243852,0.00015616,2]
[332881211,1721621446037,-236.73723315,0.00015616,2]
[332881212,1721621446046,-500.0,0.00015616,2]
[332881213,1721621446056,-1169.38,0.00015616,2]
[332881214,1721621446065,-500.0,0.00015616,2]
[332881215,1721621446074,-500.0,0.00015616,2]
[332881216,1721621446084,-500.0,0.00015616,2]
[332881217,1721621446094,-552.37938176,0.00015616,2]
[332881218,1721621446103,-500.0,0.00015616,2]
[332881219,1721621446112,-500.0,0.00015616,2]
[332881220,1721621446122,-500.0,0.00015616,2]
[332881221,1721621446131,-500.0,0.00015616,2]
[332881222,1721621446140,-500.0,0.00015616,2]
[332881223,1721621446150,-590.23,0.00015616,2]
[332881224,1721621446159,-621.32946621,0.00015621,2]
[332881225,1721621446168,-2000.0,0.00015681,2]
[332881226,1721621446179,-2000.0,0.0001569,2]
[332881227,1721621446189,-500.72751431,0.00015707,2]
[332881228,1721621446198,-500.72751431,0.00015707,2]
[332881229,1721621446208,-2085.00362608,0.00015708,2]
[332881230,1721621446217,-20354.21654022,0.00015708,2]
[332881231,1721621446227,-10521.90031923,0.00015708,2]
[332881232,1721621446236,-3820.46903031,0.00015708,2]
[332881233,1721621446246,-8399.99138129,0.00015708,2]
[332881234,1721621446255,-1161.70660488,0.00015708,2]
[332881235,1721621446264,-18498.2120516,0.00015708,2]
[332881236,1721621446273,-80611.97829408,0.00015708,2]
[332881237,1721621446283,-4924.72133787,0.00015708,2]
[332881238,1721621446293,-7108.24227971,0.00015708,2]
[332881239,1721621446303,-5200.27807032,0.00015708,2]
[332881240,1721621446313,-4076.21094792,0.00015708,2]
[332881241,1721621446322,-1696.90892194,0.00015708,2]
[332881242,1721621446331,-3774.73299527,0.00015708,2]
[332881243,1721621446341,-2811.09464157,0.00015708,2]
[332881244,1721621446350,-944.69422974,0.00015708,2]
[332881245,1721621446360,-1500.0,0.00015708,2]
[332881246,1721621446369,-33184.48522723,0.00015708,2]
[332881247,1721621446378,-4249.03828828,0.00015708,2]
[332881249,1721621446388,-1762.40924644,0.00015708,2]
[332881251,1721621446397,-13431.75505121,0.00015708,2]
[332881252,1721621446406,-97477.09347771,0.00015708,2]
[332881253,1721621446415,-53064.15054415,0.00015709,2]
[332881254,1721621446424,-49029.92656958,0.00015709,2]
[332881255,1721621446433,-415.3403136,0.00015742,2]
[332881256,1721621446442,-426.7926276,0.00015742,2]
[332881257,1721621446451,-206.6124252,0.00015742,2]
[332881258,1721621446461,-206.6124252,0.00015742,2]
[332881259,1721621446470,-413.1635146,0.00015742,2]
[332881260,1721621446479,-412.7621714,0.00015742,2]
[332881261,1721621446488,-206.6124252,0.00015742,2]
[332881262,1721621446498,-206.6124252,0.00015742,2]
[332881263,1721621446507,-2826.18978951,0.00015754,2]
[332881264,1721621446517,-1523.47,0.0001589,2]
[332881265,1721621446527,-915.74,0.0001589,2]
[332881266,1721621446537,-1169.38,0.0001589,2]
[332881267,1721621446546,-500.0,0.0001589,2]
[332881268,1721621446556,-173.29834532,0.0001589,2]
[332881269,1721621446566,-500.0,0.0001589,2]
[332881270,1721621446577,-590.23,0.0001589,2]
[332881271,1721621446588,-3000.0,0.00016,2]
[332881272,1721621446598,-3000.0,0.0001601,2]
[332881273,1721621446609,-3000.0,0.0001602,2]
[332881274,1721621446619,-3000.0,0.0001603,2]
[332881275,1721621446628,-3000.0,0.0001604,2]
[332881276,1721621446640,-3000.0,0.0001605,2]
[332881277,1721621446651,-3000.0,0.0001606,2]
[332881278,1721621446661,-3000.0,0.0001607,2]
[332881279,1721621446671,-3000.0,0.0001608,2]
[332881280,1721621446681,-3000.0,0.0001609,2]
[332881281,1721621446691,-3000.0,0.000161,2]
[332881282,1721621446700,-3000.0,0.0001611,2]
[332881283,1721621446710,-3000.0,0.0001612,2]
[332881284,1721621446719,-3000.0,0.0001613,2]
[332881285,1721621446728,-3000.0,0.0001614,2]
[332881286,1721621446737,-3000.0,0.0001615,2]
[332881287,1721621446746,-3000.0,0.0001616,2]
[332881288,1721621446755,-731.27976673,0.00016164,2]
[332881289,1721621446764,-500.0,0.00016164,2]
[332881290,1721621446773,-5397.5,0.00016164,2]
[332881291,1721621446782,-652.01,0.00016164,2]
[332881292,1721621446791,-1092.54,0.00016164,2]
[332881293,1721621446800,-993.63,0.00016164,2]
[332881294,1721621446810,-917.62,0.00016164,2]
[332881295,1721621446819,-500.0,0.00016164,2]
[332881296,1721621446828,-218.36372828,0.00016164,2]
[332881297,1721621446837,-716.45,0.00016164,2]
[332881298,1721621446846,-4132.02,0.00016164,2]
[332881299,1721621446858,-286.0,0.00016164,2]
[332881300,1721621446869,-500.0,0.00016164,2]
[332881301,1721621446879,-2222.11,0.00016164,2]
[332881302,1721621446891,-818.39,0.00016164,2]
[332881303,1721621446903,-935.93,0.00016164,2]
[332881304,1721621446913,-7400.98,0.00016164,2]
[332881305,1721621446923,-500.0,0.00016164,2]
[332881306,1721621446935,-930.77,0.00016164,2]
[332881307,1721621446946,-500.0,0.00016164,2]
[332881308,1721621446956,-734.72,0.00016164,2]
[332881309,1721621446967,-500.0,0.00016164,2]
[332881310,1721621446978,-500.0,0.00016164,2]
[332881311,1721621446989,-1669.97,0.00016164,2]
[332881312,1721621446999,-850.61,0.00016164,2]
[332881313,1721621447008,-552.12,0.00016164,2]
[332881314,1721621447017,-500.0,0.00016164,2]
[332881315,1721621447026,-930.18,0.00016164,2]
[332881316,1721621447036,-500.0,0.00016164,2]
[332881317,1721621447046,-1082.74,0.00016164,2]
[332881318,1721621447055,-1077.15,0.00016164,2]
[332881319,1721621447065,-2665.28,0.00016164,2]
[332881320,1721621447074,-1492.38,0.00016164,2]
[332881321,1721621447084,-500.0,0.00016164,2]
[332881322,1721621447093,-1378.02,0.00016164,2]
[332881323,1721621447105,-1450.96,0.00016164,2]
[332881324,1721621447115,-500.0,0.00016164,2]
[332881325,1721621447125,-500.0,0.00016164,2]
[332881326,1721621447134,-500.0,0.00016164,2]
[332881327,1721621447144,-559.28,0.00016164,2]
[332881328,1721621447154,-776.21,0.00016164,2]
[332881329,1721621447164,-2703.39,0.00016164,2]
[332881331,1721621447174,-464.44697017,0.00016164,2]
[332881333,1721621447183,-508.21,0.00016164,2]
[332881334,1721621447193,-722.53,0.00016164,2]
[332881336,1721621447203,-1011.22,0.00016164,2]
[332881338,1721621447213,-500.0,0.00016164,2]
[332881339,1721621447222,-521.74,0.00016164,2]
[332881340,1721621447231,-1538.99,0.00016164,2]
[332881341,1721621447280,-1744.99,0.00016164,2]
[332881342,1721621447290,-500.0,0.00016164,2]
[332881343,1721621447299,-611.19489112,0.00016164,2]
[332881344,1721621447310,-10125.34,0.00016164,2]
[332881345,1721621447319,-923.66,0.00016164,2]
[332881346,1721621447328,-767.77,0.00016164,2]
[332881347,1721621447337,-4491.18,0.00016164,2]
[332881348,1721621447347,-830.7260849,0.00016164,2]
[332881349,1721621447586,-1052.5939151,0.00016164,2]
[332881350,1721621447596,-556.62,0.00016164,2]
[332881351,1721621447605,-500.0,0.00016164,2]
[332881352,1721621447614,-500.0,0.00016164,2]
[332881353,1721621447623,-710.76,0.00016164,2]
[332881354,1721621447633,-3281.33,0.00016164,2]
[332881355,1721621447642,-763.56,0.00016164,2]
[332881356,1721621447651,-638.5,0.00016164,2]
[332881357,1721621447660,-4482.68,0.00016164,2]
[332881358,1721621447669,-644.61,0.00016164,2]
[332881359,1721621447678,-850.61,0.00016164,2]
[332881360,1721621447687,-648.14,0.00016164,2]
[332881361,1721621447697,-2313.44,0.00016164,2]
[332881362,1721621447708,-1229.93,0.00016164,2]
[332881363,1721621447717,-6955.44,0.00016164,2]
[332881364,1721621447727,-500.0,0.00016164,2]
[332881365,1721621447736,-5865.42,0.00016164,2]
[332881366,1721621447746,-500.0,0.00016164,2]
[332881367,1721621447755,-304.33,0.00016164,2]
[332881368,1721621447766,-877.65,0.00016164,2]
[332881369,1721621447776,-500.0,0.00016164,2]
[332881370,1721621447785,-831.66,0.00016164,2]
[332881371,1721621447795,-419.73,0.00016164,2]
[332881372,1721621447804,-500.0,0.00016164,2]
[332881373,1721621447813,-500.0,0.00016164,2]
[332881374,1721621447824,-500.0,0.00016164,2]
[332881375,1721621447835,-500.0,0.00016164,2]
[332881376,1721621447845,-500.0,0.00016164,2]
[332881377,1721621447855,-539.22,0.00016164,2]
[332881378,1721621447869,-500.0,0.00016164,2]
[332881379,1721621447878,-500.0,0.00016164,2]
[332881380,1721621447887,-500.0,0.00016164,2]
[332881381,1721621447899,-482.68,0.00016164,2]
[332881382,1721621447909,-500.0,0.00016164,2]
[332881383,1721621447920,-500.0,0.00016164,2]
[332881384,1721621447930,-323.19324587,0.00016164,2]
[332881427,1721622270985,175.61,0.00013688,62]
[332881448,1721622623160,400507.06233214,0.000225,30]
[332881895,1721622641137,-1431.8951927,0.00012656,2]
[332881897,1721622641148,-170.05702,0.00012751,2]
[332881899,1721622641159,-2576.35424305,0.00013588,2]
[332881901,1721622641169,-3396.89490653,0.00013672,2]
[332881904,1721622641179,-52628.84566164,0.00013678,2]
[332881909,1721622641220,-1346.5,0.00013678,2]
[332881917,1721622641284,-445056.80220736,0.00013678,2]
[332881919,1721622641293,-19442.92605809,0.00013688,2]
[332881921,1721622641302,-3781.68915549,0.00013688,2]
[332881923,1721622641313,-154.85621034,0.00013688,2]
[332881925,1721622641322,-1628.33517932,0.00013688,2]
[332881927,1721622641332,-3098.08745181,0.00013688,2]
[332881929,1721622641343,-154.79103211,0.00013688,2]
[332881931,1721622641354,-218.11782057,0.00013688,2]
[332881933,1721622641365,-224495.81260664,0.00013688,2]
[332881935,1721622641374,-4707.50365433,0.00013688,2]
[332881937,1721622641383,-154.87906654,0.00013688,2]
[332881939,1721622641392,-154.79103211,0.00013688,2]
[332881941,1721622641403,-2110.33261488,0.00013688,2]
[332881943,1721622641413,-500.0,0.00013698,2]
[332881946,1721622641424,-500.0,0.00013698,2]
[332881948,1721622641435,-511.14918565,0.00013698,2]
[332881950,1721622641448,-500.0,0.00013698,2]
[332881952,1721622641459,-500.0,0.00013698,2]
[332881955,1721622641471,-500.0,0.00013698,2]
[332881957,1721622641482,-500.0,0.00013698,2]
[332881959,1721622641492,-232.33119763,0.00013698,2]
[332881961,1721622641502,-500.0,0.00013698,2]
[332881963,1721622641513,-500.0,0.00013698,2]
[332881965,1721622641524,-500.0,0.00013698,2]
[332881968,1721622641534,-500.0,0.00013698,2]
[332881970,1721622641545,-500.0,0.00013698,2]
[332881972,1721622641554,-500.0,0.00013698,2]
[332881974,1721622641564,-374.15193267,0.00013698,2]
[332881976,1721622641573,-500.0,0.00013698,2]
[332881978,1721622641584,-552.12,0.00013698,2]
[332881980,1721622641595,-500.0,0.00013698,2]
[332881982,1721622641606,-500.0,0.00013698,2]
[332881984,1721622641616,-500.0,0.00013698,2]
[332881986,1721622641626,-500.0,0.00013698,2]
[332881989,1721622641636,-500.0,0.00013698,2]
[332881991,1721622641645,-500.0,0.00013698,2]
[332881993,1721622641655,-500.0,0.00013698,2]
[332881995,1721622641664,-500.0,0.00013698,2]
[332881997,1721622641674,-500.0,0.00013698,2]
[332881999,1721622641684,-500.0,0.00013698,2]
[332882001,1721622641697,-500.0,0.00013698,2]
[332882003,1721622641707,-500.0,0.00013698,2]
[332882005,1721622641716,-500.0,0.00013698,2]
[332882007,1721622641725,-611.19489112,0.00013698,2]
[332882009,1721622641734,-500.0,0.00013698,2]
[332882011,1721622641744,-500.0,0.00013698,2]
[332882013,1721622641753,-500.0,0.00013698,2]
[332882015,1721622641762,-500.0,0.00013698,2]
[332882017,1721622641771,-500.0,0.00013698,2]
[332882019,1721622641780,-500.0,0.00013698,2]
[332882021,1721622641791,-500.0,0.00013698,2]
[332882024,1721622641803,-500.0,0.00013698,2]
[332882026,1721622641812,-500.0,0.00013698,2]
[332882028,1721622641821,-500.0,0.00013698,2]
[332882030,1721622641830,-500.0,0.00013698,2]
[332882031,1721622641839,-500.0,0.00013698,2]
[332882033,1721622641848,-500.0,0.00013698,2]
[332882035,1721622641858,-500.0,0.00013698,2]
[332882038,1721622641870,-500.0,0.00013698,2]
[332882040,1721622641879,-500.0,0.00013698,2]
[332882042,1721622641890,-500.0,0.00013698,2]
[332882044,1721622641900,-500.0,0.00013698,2]
[332882046,1721622641911,-500.0,0.00013698,2]
[332882048,1721622641920,-603.28,0.00013698,2]
[332882050,1721622641931,-500.0,0.00013698,2]
[332882052,1721622641940,-500.0,0.00013698,2]
[332882054,1721622641950,-505.27845831,0.00013698,2]
[332882057,1721622641961,-202.55632502,0.00013698,2]
[332882059,1721622641971,-1575.24,0.00013698,2]
[332882061,1721622641982,-500.0,0.00013698,2]
[332882063,1721622641992,-500.0,0.00013698,2]
[332882065,1721622642001,-500.0,0.00013698,2]
[332882067,1721622642011,-500.0,0.00013698,2]
[332882069,1721622642021,-500.0,0.00013698,2]
[332882071,1721622642030,-500.0,0.00013698,2]
[332882073,1721622642039,-349.1682991,0.00013698,2]
[332882075,1721622642048,-500.0,0.00013698,2]
[332882077,1721622642058,-500.0,0.00013698,2]
[332882079,1721622642067,-500.0,0.00013698,2]
[332882081,1721622642076,-500.0,0.00013698,2]
[332882083,1721622642085,-500.0,0.00013698,2]
[332882085,1721622642094,-500.0,0.00013698,2]
[332882087,1721622642103,-503.48151961,0.00013698,2]
[332882089,1721622642112,-751.93,0.00013698,2]
[332882091,1721622642122,-500.0,0.00013698,2]
[332882093,1721622642132,-500.0,0.00013698,2]
[332882095,1721622642143,-500.0,0.00013698,2]
[332882096,1721622642151,-500.0,0.00013698,2]
[332882098,1721622642160,-500.0,0.00013698,2]
[332882100,1721622642169,-500.0,0.00013698,2]
[332882102,1721622642178,-503.8121749,0.00013698,2]
[332882104,1721622642187,-500.0,0.00013698,2]
[332882105,1721622642196,-500.0,0.00013698,2]
[332882107,1721622642205,-412.15783446,0.00013698,2]
[332882109,1721622642214,-500.0,0.00013698,2]
[332882111,1721622642223,-503.02447703,0.00013698,2]
[332882113,1721622642233,-500.0,0.00013698,2]
[332882115,1721622642242,-500.0,0.00013698,2]
[332882116,1721622642251,-500.0,0.00013698,2]
[332882118,1721622642260,-500.0,0.00013698,2]
[332882120,1721622642270,-500.0,0.00013698,2]
[332882122,1721622642282,-500.0,0.00013698,2]
[332882124,1721622642291,-500.0,0.00013698,2]
[332882125,1721622642301,-500.0,0.00013698,2]
[332882127,1721622642310,-500.0,0.00013698,2]
[332882129,1721622642321,-500.0,0.00013698,2]
[332882131,1721622642330,-500.0,0.00013698,2]
[332882133,1721622642340,-500.0,0.00013698,2]
[332882135,1721622642349,-500.0,0.00013698,2]
[332882136,1721622642359,-500.0,0.00013698,2]
[332882138,1721622642368,-500.0,0.00013698,2]
[332882140,1721622642377,-500.0,0.00013698,2]
[332882142,1721622642386,-500.0,0.00013698,2]
[332882144,1721622642396,-500.0,0.00013698,2]
[332882145,1721622642405,-500.0,0.00013698,2]
[332882146,1721622642414,-500.0,0.00013698,2]
[332882147,1721622642423,-509.54338405,0.00013698,2]
[332882149,1721622642432,-500.0,0.00013698,2]
[332882151,1721622642442,-500.0,0.00013698,2]
[332882153,1721622642452,-500.0,0.00013698,2]
[332882154,1721622642462,-543.11,0.00013698,2]
[332882156,1721622642471,-543.11,0.00013698,2]
[332882158,1721622642480,-543.11,0.00013698,2]
[332882159,1721622642490,-543.11,0.00013698,2]
[332882161,1721622642499,-543.11,0.00013698,2]
[332882163,1721622642508,-543.11,0.00013698,2]
[332882165,1721622642518,-543.11,0.00013698,2]
[332882167,1721622642527,-543.11,0.00013698,2]
[332882169,1721622642536,-543.11,0.00013698,2]
[332882170,1721622642545,-543.11,0.00013698,2]
[332882172,1721622642554,-543.11,0.00013698,2]
[332882174,1721622642563,-543.11,0.00013698,2]
[332882175,1721622642572,-543.11,0.00013698,2]
[332882176,1721622642581,-543.11,0.00013698,2]
[332882177,1721622642590,-500.0,0.00013698,2]
[332882178,1721622642599,-500.0,0.00013698,2]
[332882179,1721622642608,-500.0,0.00013698,2]
[332882180,1721622642617,-500.0,0.00013698,2]
[332882181,1721622642627,-500.0,0.00013698,2]
[332882182,1721622642636,-500.0,0.00013698,2]
[332882183,1721622642645,-500.0,0.00013698,2]
[332882184,1721622642654,-500.0,0.00013698,2]
[332882185,1721622642663,-500.0,0.00013698,2]
[332882186,1721622642673,-500.0,0.00013698,2]
[332882187,1721622642682,-500.0,0.00013698,2]
[332882188,1721622642691,-500.0,0.00013698,2]
[332882189,1721622642700,-649.40005782,0.00013698,2]
[332882190,1721622642709,-500.89573504,0.00013698,2]
[332882191,1721622642718,-319.33455858,0.00013698,2]
[332882192,1721622642729,-504.85668131,0.00013698,2]
[332882193,1721622642738,-505.23614424,0.00013698,2]
[332882194,1721622642747,-500.0,0.00013698,2]
[332882195,1721622642756,-504.98413447,0.00013698,2]
[332882196,1721622642766,-500.0,0.00013698,2]
[332882197,1721622642776,-500.0,0.00013698,2]
[332882198,1721622642784,-500.0,0.00013698,2]
[332882199,1721622642794,-471.06056895,0.00013698,2]
[332882200,1721622642803,-500.0,0.00013698,2]
[332882201,1721622642813,-500.0,0.00013698,2]
[332882202,1721622642822,-741.15,0.00013698,2]
[332882203,1721622642831,-248.33983644,0.00013698,2]
[332882205,1721622642841,-500.0,0.00013698,2]
[332882207,1721622642850,-500.0,0.00013698,2]
[332882208,1721622642860,-500.0,0.00013698,2]
[332882210,1721622642870,-500.0,0.00013698,2]
[332882213,1721622642879,-500.0,0.00013698,2]
[332882216,1721622642889,-404.99770322,0.00013698,2]
[332882219,1721622642900,-521.74,0.00013698,2]
[332882222,1721622642910,-500.0,0.00013698,2]
[332882225,1721622642920,-500.0,0.00013698,2]
[332882227,1721622642930,-648.14,0.00013698,2]
[332882229,1721622642942,-644.61,0.00013698,2]
[332882233,1721622642951,-500.0,0.00013698,2]
[332882236,1721622642961,-500.0,0.00013698,2]
[332882239,1721622642970,-500.0,0.00013698,2]
[332882242,1721622642980,-500.0,0.00013698,2]
[332882244,1721622642989,-500.0,0.00013698,2]
[332882246,1721622642999,-503.32530299,0.00013698,2]
[332882248,1721622643008,-504.31067322,0.00013698,2]
[332882250,1721622643017,-505.74011897,0.00013698,2]
[332882251,1721622643027,-500.0,0.00013698,2]
[332882252,1721622643037,-500.0,0.00013698,2]
[332882253,1721622643046,-500.0,0.00013698,2]
[332882254,1721622643056,-500.0,0.00013698,2]
[332882255,1721622643066,-500.0,0.00013698,2]
[332882256,1721622643075,-504.29319091,0.00013698,2]
[332882257,1721622643085,-504.40858094,0.00013698,2]
[332882258,1721622643095,-512.01137092,0.00013698,2]
[332882260,1721622643105,-500.0,0.00013698,2]
[332882261,1721622643114,-500.0,0.00013698,2]
[332882262,1721622643124,-500.0,0.00013698,2]
[332882263,1721622643133,-500.0,0.00013698,2]
[332882264,1721622643143,-552.37938176,0.00013698,2]
[332882265,1721622643152,-500.0,0.00013698,2]
[332882266,1721622643164,-500.0,0.00013698,2]
[332882267,1721622643173,-500.0,0.00013698,2]
[332882268,1721622643183,-505.33330674,0.00013698,2]
[332882269,1721622643192,-500.0,0.00013698,2]
[332882270,1721622643201,-500.0,0.00013698,2]
[332882271,1721622643210,-500.0,0.00013698,2]
[332882272,1721622643219,-503.66669502,0.00013698,2]
[332882273,1721622643228,-505.24936389,0.00013698,2]
[332882274,1721622643237,-204.8816853,0.00013698,2]
[332882275,1721622643247,-500.0,0.00013698,2]
[332882276,1721622643256,-504.2214068,0.00013698,2]
[332882277,1721622643265,-500.0,0.00013698,2]
[332882278,1721622643278,-503.80197866,0.00013698,2]
[332882279,1721622643288,-461.94701501,0.00013698,2]
[332882280,1721622643297,-502.71172316,0.00013698,2]
[332882281,1721622643307,-487.8921371,0.00013698,2]
[332882282,1721622643317,-500.0,0.00013698,2]
[332882283,1721622643327,-500.0,0.00013698,2]
[332882284,1721622643336,-500.0,0.00013698,2]
[332882285,1721622643346,-500.0,0.00013698,2]
[332882286,1721622643356,-500.0,0.00013698,2]
[332882287,1721622643365,-500.0,0.00013698,2]
[332882288,1721622643374,-349.30165848,0.00013698,2]
[332882289,1721622643384,-500.0,0.00013698,2]
[332882290,1721622643393,-500.0,0.00013698,2]
[332882291,1721622643402,-500.0,0.00013698,2]
[332882292,1721622643414,-500.0,0.00013698,2]
[332882293,1721622643424,-500.0,0.00013698,2]
[332882294,1721622643434,-507.14398914,0.00013698,2]
[332882295,1721622643443,-500.0,0.00013698,2]
[332882296,1721622643452,-500.0,0.00013698,2]
[332882297,1721622643461,-500.0,0.00013698,2]
[332882298,1721622643471,-500.0,0.00013698,2]
[332882299,1721622643481,-585.93209491,0.00013698,2]
[332882300,1721622643491,-492.041417,0.00013698,2]
[332882301,1721622643500,-514.52401745,0.00013698,2]
[332882302,1721622643509,-594.10073775,0.00013698,2]
[332882303,1721622643519,-500.0,0.00013698,2]
[332882304,1721622643528,-500.0,0.00013698,2]
[332882305,1721622643538,-285.24884328,0.00013698,2]
[332882306,1721622643547,-500.0,0.00013698,2]
[332882307,1721622643708,-500.0,0.00013698,2]
[332882308,1721622643718,-304.33,0.00013698,2]
[332882309,1721622643728,-371.71316994,0.00013698,2]
[332882310,1721622643738,-500.0,0.00013698,2]
[332882311,1721622643748,-500.0,0.00013698,2]
[332882312,1721622643759,-500.0,0.00013698,2]
[332882313,1721622643770,-500.0,0.00013698,2]
[332882314,1721622643782,-500.0,0.00013698,2]
[332882315,1721622643792,-500.0,0.00013698,2]
[332882316,1721622643802,-500.0,0.00013698,2]
[332882317,1721622643812,-286.0,0.00013698,2]
[332882318,1721622643823,-541.28,0.00013698,2]
[332882319,1721622643832,-500.0,0.00013698,2]
[332882320,1721622643842,-500.0,0.00013698,2]
[332882321,1721622643851,-290.3705009,0.00013698,2]